{"text_format":"3","workbook":"xlsx","n_sheets":4,"sheets":["中央行政事业性收费","中央涉企收费","省立行政事业性收费","考试考务"],"not_rendered":{"defined_names":9},"read":"whole","date_system":"1900"}

{"sheet":"中央行政事业性收费","index":0,"n_rows":151,"n_cols":7,"rows_kept":151,"merged":[[1,0,1,5]]}
["附件1"]
["河北省执行的全国性行政事业性收费目录清单"]
["序号","部门","项目序号","项目名称","资金管理方式","政策依据","收费标准"]
["一","外交部门"]
[null,null,1,"认证费（含加急）","缴入中央和地方国库","计价格〔1999〕466号，价费字〔1992〕198号","商业文件认证费100元/份\n民事类证书50元/证\n认证加急费50元/证（份）"]
[null,null,2,"签证费"]
[{"$nulls":3},"（1）代办外国签证（含加急，限于各国家机关收取的）","缴入中央和地方国库","财综〔2003〕45号，计价格〔1999〕466号，价费字〔1992〕198号，冀价行费字〔1999〕第29号，冀价行费〔2005〕50号","详见文件"]
[{"$nulls":3},"（2）代填外国签证申请表（限于国家机关）","缴入中央和地方国库","财综〔2003〕45号，计价格〔1999〕466号，价费字〔1992〕198号，冀价行费字〔1999〕第29号，冀价行费〔2005〕50号","详见文件"]
[null,null,3,"驻外使领馆收费","缴入中央国库","计价格〔1999〕466号，价费字〔1992〕198号，公境外〔1992〕898号，公通字〔1996〕89号","详见文件"]
["二 ","教育部门"]
[null,null,4,"公办幼儿园保教费、住宿费","缴入中央和地方国库","《幼儿园管理条例》，发改价格〔2011〕3207号，教财〔2020〕5号，冀价行费〔2017〕58号,冀发改公价〔2020〕774号，冀财预〔2010〕131号，冀财预〔2010〕80号，冀教财〔2021〕17号，冀发改公价规〔2023〕5号，冀发改公价〔2023〕630号","授权市人民政府制定"]
[null,null,5,"普通高中学费、住宿费","缴入中央和地方财政专户","《中华人民共和国教育法》，教财〔2003〕4号，教财〔1996〕101号，教财〔2020〕5号，冀发改价调〔2022〕1563号，冀教财〔2021〕17号，","授权市人民政府制定"]
[null,null,6,"中等职业学校学费、住宿费","缴入中央和地方财政专户","《中华人民共和国教育法》，教财〔1996〕101号，教财〔2003〕4号，财综〔2004〕4号，教财〔2020〕5号，冀财教〔2010〕25号，冀财教〔2010〕153号，冀教职〔2000〕11号，冀教职〔1999〕10号，冀发改价调〔2022〕1563号，冀教财〔2021〕17号","授权市人民政府制定"]
[null,null,7,"高等学校（含科研院所、各级党校等）学费、住宿费、委托培养费、函大电大夜大及短期培训费","缴入中央和地方财政专户","《中华人民共和国教育法》，《中华人民共和国高等教育法》，财教〔2013〕19号，发改价格〔2013〕887号，教财〔2006〕2号，发改价格〔2005〕2528号，教财〔2003〕4号，计价格〔2002〕665号，计办价格〔2000〕906号，教财〔1996〕101号，价费字〔1992〕367号，教财〔1992〕42号，发改价格〔2006〕702号，教财〔2006〕7号，教电〔2005〕333号，教财〔2005〕22号，教高〔2015〕6号，教财〔2020〕5号，冀价行费〔2018〕93号，冀教财〔2021〕17号，冀发改公价〔2021〕933号，冀发改公价〔2021〕1778号，冀发改公价〔2022〕210号，冀发改公价[2022]841号","省发展改革委、省财政厅、省教育厅制定"]
[null,null,8,"国家开放大学收费","缴入中央和地方财政专户","财综〔2014〕21号，发改价格〔2009〕2555号，计价格〔2002〕838号，教财厅〔2000〕110号，财办综〔2003〕203号，教财〔2020〕5号，冀教财〔2021〕17号，冀发改公价[2021]1638号","详见文件"]
["三 ","公安部门"]
[null,null,9,"证照费"]
[{"$nulls":3},"（1）外国人证件费",null,"价费字〔1992〕240号，公办〔2022〕136号"]
[{"$nulls":3},"   ①居留许可","缴入中央和地方国库","财综〔2004〕60号，发改价格〔2004〕2230号","有效期不满1年的，400元/人；有效期1年（含1年）至3年以内的，800元/人；有效期3年（含3年）至5年（含5年）的，1000元/人；增加偕行人，每增加1人按相应标准收费；减少偕行人，每人次200元；居留许可变更的，每次200元"]
[{"$nulls":3},"  ②永久居留申请","缴入中央和地方国库","财综〔2004〕32号，发改价格〔2004〕1267号","1500元/人"]
[{"$nulls":3},"   ③永久居留身份证工本费","缴入中央国库","财综〔2004〕32号，发改价格〔2004〕1267号，财税〔2018〕10号，冀财税〔2018〕19号","300元/证；有效期满、内容变更，申请换发或者补发300元/证；丢失补领或损坏换领600元/证"]
[{"$nulls":3},"   ④出入境证","缴入地方国库","公通字〔1996〕89号，公通字〔2000〕99号","100元/人次"]
[{"$nulls":3},"   ⑤旅行证","缴入地方国库","公通字〔1996〕89号","50元/人次"]
[{"$nulls":3},"（2）公民出入境证件费",null,"《中华人民共和国护照法》，价费字〔1993〕164号，价费字〔1992〕240号，公通字〔2000〕99号，发改价格〔2017〕1186号，财税函〔2018〕1号，发改价格〔2019〕914号"]
[{"$nulls":3},"   ①因私护照（含护照贴纸加注）","缴入中央和地方国库","发改价格〔2013〕1494号，计价格〔2000〕293号，价费字〔1993〕164号，发改价格〔2019〕914号","2019年7月起降为120元/本"]
[{"$nulls":3},"   ②出入境通行证","缴入中央和地方国库","财综〔2008〕9号,价费字〔1993〕164号，公通字〔2000〕99号,发改价格〔2017〕1186号，发改价格〔2019〕914号","一次出入境有效15元/证，多次出入境有效80元/证"]
[{"$nulls":3},"   ③往来（含前往）港澳通行证（含签注）","缴入中央和地方国库","发改价格〔2005〕77号，计价格〔2002〕1097号，发改价格〔2019〕914号","1.前往港澳通行证工本费：40元/证\n2.往来港澳通行证工本费：2019年7月起降为60元/张\n3.签注费：一次有效签注每件15元，二次有效签注每件30元，短期（不超过一年）多次有效签注每件80元，一年以上（不含一年）两年以下（含两年）多次有效签注每件120元，两年以上三年以下（不含三年）多次有效签注每件160元，长期（三年以上，含三年）多次有效签注每件240元。"]
[{"$nulls":3},"   ④港澳居民来往内地通行证（限于补发、换发）","缴入中央和地方国库","财税〔2020〕46号，发改价格〔2020〕1516号","成人十年期350元/证；儿童五年期230元/证。详见文件"]
[{"$nulls":3},"   ⑤台湾居民来往大陆通行证","缴入中央和地方国库","计价格〔2001〕1835号，发改价格〔2004〕334号，价费字〔1993〕164号，发改价格〔2017〕1186号，发改价格规〔2019〕1931号","详见文件"]
[{"$nulls":3},"   ⑥台湾同胞定居证","缴入地方国库","发改价格〔2004〕2839号，价费字〔1993〕164号，发改价格〔2017〕1186号","8元/证"]
[{"$nulls":3},"   ⑦大陆居民往来台湾通行证（含签注）","缴入中央和地方国库","发改价格〔2016〕352号，计价格〔2001〕1835号，价费字〔1993〕164号，发改价格〔2017〕1186号，发改价格规〔2019〕1931号","详见文件"]
[{"$nulls":3},"（3）户籍管理证件工本费（限于丢失、补办和过期失效重办）","缴入地方国库","价费字〔1992〕240号，财综〔2012〕97号,冀价行费函〔1999〕5号,冀价行费〔1996〕92号,冀财综〔2013〕2号,冀政办函〔2008〕57号","详见文件"]
[{"$nulls":3},"   ①居民户口簿",null,"《中华人民共和国户口登记条例》"]
[{"$nulls":3},"   ②户口迁移证件",null,"《中华人民共和国户口登记条例》"]
[{"$nulls":3},"（4）居民身份证工本费","缴入地方国库","《中华人民共和国居民身份证法》，财综〔2007〕34号，发改价格〔2005〕436号，财综〔2004〕8号，发改价格〔2003〕2322号，财税〔2018〕37号，冀财综〔2014〕31号，冀价行费〔2004〕54号","居民身份证首次申领停征工本费；换领、换发20元/证；丢失补领、损坏换领40元/证；临时居民身份证10元/证。"]
[{"$nulls":3},"（5）机动车号牌工本费","缴入地方国库","《中华人民共和国道路交通安全法》，发改价格〔2004〕2831号，计价格〔1994〕783号，价费字〔1992〕240号，行业标准GA36-2014，发改价格规〔2019〕1931号，冀价行费〔2014〕49号"]
[{"$nulls":3},"   ①号牌（含临时）",null,null,"汽车号牌：反光100元/副，不反光80元/副。\n挂车号牌：反光50元/面，不反光30元/面。\n三轮汽车、低速货车、拖拉机号牌：反光40元/副，不反光25元/副。\n摩托车号牌：反光17.5元/面。\n机动车临时号牌：5元/张。\n调换号牌、遗失补牌按同类号牌收费。"]
[{"$nulls":3},"   ②号牌专用固封装置",null,null,"单独补发号牌专用固封装置1元/个"]
[{"$nulls":3},"   ③号牌架",null,null,"铁质号牌架及同类产品5元/只，铝合金号牌架及同类产品10元/只"]
[{"$nulls":3},"（6）机动车行驶证、登记证、驾驶证工本费","缴入地方国库","《中华人民共和国道路交通安全法》，发改价格〔2004〕2831号，财综〔2001〕67号，计价格〔2001〕1979号，计价格〔1994〕783号，价费字〔1992〕240号，发改价格〔2017〕1186号","1.机动车行驶证：10元/本。调换、遗失补领按同类证件收费\n2.机动车登记证书工本费:10元/本。调换、遗失补领按同类证件收费\n3.驾驶证工本费10元/本。驾驶证IC卡30元/卡。调换、遗失补领以上证件按同类证件收费。"]
[{"$nulls":3},"（7）临时入境机动车号牌和行驶证、临时机动车驾驶许可工本费","缴入地方国库","《中华人民共和国道路交通安全法》，财综〔2008〕36号，发改价格〔2008〕1575号，发改价格〔2017〕1186号","10元/证"]
[null,null,10,"外国人签证费","缴入中央和地方国库","价费字〔1992〕240号,公通字〔2000〕99号,计价格〔2003〕392号，公办[2022]136号","详见文件"]
[null,null,11,"中国国籍申请手续费（含证书费）","缴入地方国库","价费字〔1992〕240号，公通字〔2000〕99号，公通字〔1996〕89号，公办[2022]136号","中国国籍申请手续费50元/人次，加入、退出、恢复中国国籍证书工本费200元/证"]
["四","民政部门"]
[null,null,12,"殡葬收费","缴入地方国库","价费字〔1992〕249号，发改价格〔2012〕673号，冀价行费字〔2003〕49号，冀价行费〔2006〕3号,冀价行费字〔1999〕28号,冀价行费字〔1999〕38号,冀价行费字〔2005〕38号，冀发改公价规〔2023〕2号","详见文件"]
["五","自然资源部门"]
[null,null,13,"土地复垦费","缴入地方国库","《中华人民共和国土地管理法》，《土地复垦条例》，财税〔2014〕77号,财政部 税务总局 发展改革委 民政部 商务部 卫生健康委公告2019年第76号，《河北省土地管理条例》 ","造成土地破坏的单位或者个人应当根据破坏土地的面积和破坏程度，按照每平方米五元至二十元的标准，向市、县土地行政主管部门缴纳土地复垦费，由收取复垦费的土地行政主管部门统一组织复垦。"]
[null,null,14,"土地闲置费","缴入地方国库","《中华人民共和国土地管理法》,《中华人民共和国城市房地产管理法》，国发〔2008〕3号，财税〔2014〕77号,财政部 税务总局 发展改革委 民政部 商务部 卫生健康委公告2019年第76号，财税[2021]8号，《河北省土地管理条例》，冀税发〔2021〕65号","《中华人民共和国城市房地产管理法 》第二十六条　以出让方式取得土地使用权进行房地产开发的，必须按照土地使用权出让合同约定的土地用途、动工开发期限开发土地。超过出让合同约定的动工开发日期满一年未动工开发的，可以征收相当于土地使用权出让金百分之二十以下的土地闲置费；满二年未动工开发的，可以无偿收回土地使用权；但是，因不可抗力或者政府、政府有关部门的行为或者动工开发必需的前期工作造成动工开发迟延的除外。《闲置土地处置办法》第十四条　除本办法第八条规定情形外，闲置土地按照下列方式处理：\n　　（一）未动工开发满1年的，由市、县国土资源主管部门报经本级人民政府批准后，向国有建设用地使用权人下达《征缴土地闲置费决定书》，按照土地出让或者划拨价款的20%征缴土地闲置费。土地闲置费不得列入生产成本。\n　　（二）未动工开发满两年的，由市、县国土资源主管部门按照《中华人民共和国土地管理法》第三十七条和《中华人民共和国城市房地产管理法》第二十六条的规定，报经有批准权的人民政府批准后，向国有建设用地使用权人下达《收回国有建设用地使用权决定书》，无偿收回国有建设用地使用权。闲置土地设有抵押权的，同时抄送相关土地抵押权人。\n"]
[null,null,15,"不动产登记费","缴入中央和地方国库","《中华人民共和国民法典》，财税〔2014〕77号，财税〔2016〕79号，发改价格规〔2016〕2559号，财税〔2019〕45号，财税〔2019〕53号,财政部 税务总局 发展改革委 民政部 商务部 卫生健康委公告2019年第76号","1.规划用途为住宅的房屋（以下简称住宅）及其建设用地使用权申请办理不动产登记事项，提供具体服务内容，据实收取不动产登记费，收费标准为每件80元。                                                          2.非住宅类不动产登记收费标准。办理非住宅类不动产权利的首次登记、转移登记，收取不动产登记费，收费标准为每件550元。                3.不动产登记机构按本通知第一条规定收取不动产登记费，核发一本不动产权属证书的不收取证书工本费。向一个以上不动产权利人核发权属证书的，每增加一本证书加收证书工本费10元。"]
[null,null,16,"耕地开垦费","缴入地方国库","《中华人民共和国土地管理法》，《中华人民共和国土地管理法实施条例》，财税〔2014〕77号,财政部 税务总局 发展改革委 民政部 商务部 卫生健康委公告2019年第76号，《河北省土地管理条例》 ，冀发改公价规[2024]5号","详见冀发改公价规[2024]5号"]
["六","生态环境部门"]
[null,null,17,"海洋废弃物倾倒费","缴入中央国库","《中华人民共和国海洋环境保护法》，发改价格〔2008〕1927号","详见文件"]
["七","住房城乡建设部门"]
[null,null,18,"污水处理费","缴入地方国库","《中华人民共和国水污染防治法》,《城镇排水与污水处理条例》，财税〔2014〕151号，发改价格〔2015〕119号，冀财税〔2016〕95号，冀价经费〔2015〕110号 ","污水处理费的征收标准，按照覆盖污水处理设施正常运营和污泥处理处置成本并合理盈利的原则制定，由县级以上地方人民政府价格、财政和城镇排水与污水处理主管部门提出意见，报同级人民政府批准后执行。"]
[null,null,19,"生活垃圾处理费","缴入地方国库","《中华人民共和国固体废物污染环境防治法》，《城市市容和环境卫生管理条例》，国发〔2011〕9号，计价格〔2002〕872号，财税[2021]8号，冀税发〔2021〕59号 ，冀发改公价规[2023]6号，冀发改公价[2023]1083号，冀发改公价[2024]395号","市县政府制定"]
[null,null,20,"城市道路占用、挖掘修复费","缴入地方国库","《城市道路管理条例》，建城〔1993〕410号，财税〔2015〕68号,冀建城〔1994〕6号，冀建城〔2015〕43号，国办发〔2020〕27号，财办税﹝2020﹞13号，冀财非税〔2020〕13号 ","占道费由省级市政部门根据本办法提出意见报同级财政物价部门核定。挖掘修复收费由各省、自治区、直辖市市政部门制定，并报同级财政物价部门备案。"]
["八","交通运输部门"]
[null,null,21,"车辆通行费（限于政府还贷）","缴入地方国库","《中华人民共和国公路法》，《收费公路管理条例》，交公路发〔1994〕686号，交公路发[2010]715号,冀交公〔2012〕529号，冀交财〔2012〕29号，交办公路函〔2019〕1675号，交公路发〔2019〕98号，交公路函[2021]228号，冀交财〔2019〕448号，冀交财〔2022〕529号，冀发改公价〔2022〕1494号，冀发改公价〔2022〕1587号，冀发改公价〔2022〕1588号，冀发改公价〔2022〕1610号，冀发改公价〔2022〕1634号，冀发改公价〔2023〕205号，冀发改公价〔2023〕396号，冀交财〔2024〕2号，冀发改公价[2024]285号、《河北省防汛避险人员转移条例》，冀交法【2024】119号","政府还贷公路的收费标准，由省、自治区、直辖市人民政府交通主管部门会同同级价格主管部门、财政部门审核后，报本级人民政府审查批准。"]
["九","工业和信息化部门"]
[null,null,22,"无线电频率占用费","缴入中央和地方国库","《中华人民共和国无线电管理条例》，计价格〔2000〕1015号，发改价格〔2013〕2396号，发改价格〔2011〕749号，发改价格〔2005〕2812号，发改价格〔2003〕2300号，计价费〔1998〕218号，发改价格〔2017〕1186号，发改价格〔2018〕601号，发改价格〔2019〕914号 ","详见文件"]
[null,null,23,"电信网码号资源占用费","缴入中央国库","《中华人民共和国电信条例》，信部联清〔2004〕517号，信部联清〔2005〕401号，发改价格〔2017〕1186号 ","详见文件"]
["十","水利部门"]
[null,null,24,"水土保持补偿费","缴入中央和地方国库","《中华人民共和国水土保持法》，财综〔2014〕8号,发改价格〔2017〕1186号，冀价行费〔2017〕173号，财税[2020]58号，冀财非税〔2020〕5号 ，财税[2023]9号","1、对一般性生产建设项目，按照征占用土地面积每平方米1.4元一次性计征。对水利水电工程建设项目，水库淹没区不在水土保持补偿费计征范围之内。\n2、开采矿产资源的，建设期间，按照征占用土地面积一次性计征，具体收费标准按照第一款执行。开采期间，石油、天然气以外的矿产资源按照开采量（采掘、采剥总量）每立方米计征，其中露天矿开采按每立方米0.7元计征、地下矿开采按每立方米0.3元计征。石油、天然气根据油、气生产井（不包括水井、勘探井）占地面积按年征收，每口油、气生产井占地面积按 2000平方米计算；对丛式井每增加一口井，增加计征面积按400平方米计算，每平方米每年收费1.4元。3、取土、挖砂（河道采砂除外）、采石以及烧制砖、瓦、瓷、石灰的，根据取土、挖砂、采石量，按照每立方米0.3元计征（不足1立方米的按1立方米计）。对缴纳义务人已按前两种方式计征水土保持补偿费的，不再重复计征。4、排放废弃土、石、渣的，根据土、石、渣量，按照每立方米0.3计征（不足1立方米的按1立方米计）。对缴纳义务人已按前三种方式计征水土保持补偿费的，不再重复计征。5、对小微企业征收的水土保持补偿费属于地方收入部分收费进行减免。"]
["十一","农业农村部门"]
[null,null,25,"农药实验费","缴入中央和地方国库","《农药管理条例》，价费字〔1992〕452号，发改价格〔2015〕2136号，发改价格〔2017〕1186号 "]
[{"$nulls":3},"（1）田间试验费",null,null,"田间试验每小区60-200元"]
[{"$nulls":3},"（2）残留试验费",null,null,"残留试验（一种剂型，一种作物，一处试验点，两年试验期）15000-17500元"]
[{"$nulls":3},"（3）药效试验费",null,null,"药效示范试验每个试验点750-900元"]
[null,null,26,"渔业资源增殖保护费","缴入中央和地方国库","《中华人民共和国渔业法》，财税〔2014〕101号，财综〔2012〕97号,计价格〔1994〕400号,价费字〔1992〕452号，冀牧渔（管）字[1989]第127号，冀牧字（管）字[1991]第262号 ，冀牧渔（管)字[1992]第110号","省级人民政府渔业行政主管部门制定的，由省级人民政府物价、财政部门核定；海区渔政监督管理机构制定的，报国务院渔业行政主管部门审查后，由国务院物价、财政部门核定。"]
["十二","林业和草原部门"]
[null,null,27,"草原植被恢复费","缴入地方国库","《中华人民共和国草原法》，财综〔2010〕29号，发改价格〔2010〕1235号，冀财综[2010]69号,冀发改公价〔2020〕892号 ，财税[2022]50号，省税务局通告[2022]3号","1900元/亩"]
["十三","卫生健康部门"]
[null,null,28,"预防接种服务费","缴入地方国库","《财税〔2016〕14号，财综〔2008〕47号，发改价格〔2016〕488号，冀价行费〔2016〕99号，冀发改公价〔2023〕655号","25元/支"]
[null,null,29,"鉴定费"]
[{"$nulls":3},"（1）医疗事故鉴定费","缴入中央和地方国库","《医疗事故处理条例》，财税〔2016〕14号，财综〔2003〕27号，发改价格〔2016〕488号，冀价行费〔2016〕99号","详见文件"]
[{"$nulls":3},"（2）职业病诊断鉴定费","缴入地方国库","《中华人民共和国职业病防治法》，财税〔2016〕14号，发改价格〔2016〕488号，冀价行费〔2016〕99号","详见文件"]
[{"$nulls":3},"（3）预防接种异常反应鉴定费","缴入地方国库","《医疗事故处理条例》，财税〔2016〕14号，财综〔2008〕70号，发改价格〔2016〕488号，冀价行费〔2016〕99号","详见文件"]
[null,null,30,"非免疫规划疫苗储存运输费","缴入地方国库","《中华人民共和国疫苗管理法》，财税〔2020〕17号，冀财税〔2020〕15号，冀发改公价〔2023〕655号","10元/支"]
["十四","人防部门"]
[null,null,31,"防空地下室易地建设费","缴入中央和地方国库","中发〔2001〕9号, 计价格〔2000〕474号,财综〔2007〕53号，财税〔2014〕77号，财税〔2019〕53号,财政部 税务总局 发展改革委 民政部 商务部 卫生健康委公告2019年第76号，财政部 税务总局 住房城乡建设部公告2023年第70号，财综[2023]39号，冀政办〔2009〕5号，国发〔2007〕24号，冀财非税〔2004〕2号，《河北省人民防空工程维护与使用管理条例》，冀财税〔2015〕34号，冀财非税函[2022]4号，冀发改公价[2022]1449号，省政府令[2023]4号"," 1.防护等级6B级防空地下室易地建设费，收费标准为:设区市每平方米300元，县(市)每平方米200元。\n2.防护等级6B级以外的防空地下室易地建设费，收费标准为:设区市每平方米1500元，县(市)每平方米1000元。"]
["十五","法院"]
[null,null,32,"诉讼费","缴入中央和地方国库","《中华人民共和国民事诉讼法》，《中华人民共和国行政诉讼法》，《诉讼费用交纳办法》（国务院令第481号），财行〔2019〕283号，冀财预〔2005〕105号，冀财政法〔2019〕17号，冀财政法〔2021〕53号，冀发改公价〔2021〕1637号，冀财非税函[2022]4号","详见文件"]
["十六","市场监管部门"]
[null,null,33,"特种设备检验检测费","缴入地方国库","《中华人民共和国特种设备安全法》，《特种设备安全监察条例》，发改价格〔2015〕1299号，财综〔2011〕16号，财综〔2001〕10号，冀发改公价〔2021〕769号，冀发改公价〔2021〕1535号","详见文件"]
["十七","民航部门"]
[null,null,34,"航空业务权补偿费","缴入中央国库","发改价格〔2011〕3214号，财综〔2002〕54号","详见文件"]
[null,null,35,"适航审查费","缴入中央国库","发改价格〔2011〕3214号，财综〔2002〕54号","详见文件"]
["十八","体育部门"]
[null,null,36,"外国团体来华登山注册费","缴入中央和地方国库","财综〔2004〕7号，价费字〔1992〕207号","详见文件"]
["十九","药品监管部门"]
[null,null,37,"药品注册费 ","缴入中央和地方国库","《中华人民共和国药品管理法实施条例》，财税〔2015〕2号，发改价格〔2015〕1006号，食药监公告2015第53号,食药监公告2020年75号，财政部 国家发改委公告2022年第5号，财政部 国家发展改革委公告2023年第45号 ，冀价行费〔2016〕210号 ","药品、医疗器械产品注册费=人日费用标准×注册所需人数×注册所需天数。人日费用标准，按不高于2400元执行。"]
[{"$nulls":3},"（1）新药注册费"]
[{"$nulls":3},"（2）仿制药注册费"]
[{"$nulls":3},"（3）补充申请注册费"]
[{"$nulls":3},"（4）再注册费"]
[{"$nulls":3},"（5）加急费"]
[null,null,38,"医疗器械产品注册费","缴入中央和地方国库","《中华人民共和国药品管理法实施条例》，财税〔2015〕2号，发改价格〔2015〕1006号，食药监公告2015第53号,食药监公告2020年75号，财政部 国家发改委公告2022年第5号，财政部 国家发展改革委公告2023年第45号 ，冀价行费〔2016〕210号 ","药品、医疗器械产品注册费=人日费用标准×注册所需人数×注册所需天数。人日费用标准，按不高于2400元执行。"]
[{"$nulls":3},"（1）首次注册费"]
[{"$nulls":3},"（2）变更注册费"]
[{"$nulls":3},"（3）延续注册费"]
[{"$nulls":3},"（4）临床试验申请费"]
[{"$nulls":3},"（5）加急费"]
["二十","知识产权部门"]
[null,null,39,"商标注册收费","缴入中央国库","《中华人民共和国商标法》，《中华人民共和国商标法实施条例》，发改价格〔2015〕2136号，财税〔2017〕20号，发改价格〔2013〕1494号，发改价格〔2008〕2579号，财综〔2004〕11号，计价费〔1998〕1077号，财综字〔1995〕88号，计价格〔1995〕2404号，价费字〔1992〕414号，发改价格〔2015〕2136号，财税〔2017〕20号，发改价格〔2019〕914号","详见文件"]
[{"$nulls":3},"（1）受理商标注册费"]
[{"$nulls":3},"（2）补发商标注册证费（含刊登遗失声明费用）"]
[{"$nulls":3},"（3）受理转让注册商标费"]
[{"$nulls":3},"（4）受理商标续展注册费"]
[{"$nulls":3},"（5）受理商标注册延迟费"]
[{"$nulls":3},"（6）受理商标评审费"]
[{"$nulls":3},"（7）变更费"]
[{"$nulls":3},"（8）出据商标证明费"]
[{"$nulls":3},"（9）受理集体商标注册费"]
[{"$nulls":3},"（10）受理证明商标注册费"]
[{"$nulls":3},"（11）商标异议费"]
[{"$nulls":3},"（12）撤销商标费"]
[{"$nulls":3},"（13）商标使用许可合同备案费"]
[null,null,40,"专利收费","缴入中央国库",null,"详见文件"]
[{"$nulls":3},"（1）专利收费（国内部分）",null,"《中华人民共和国专利法》，《中华人民共和国专利法实施细则》，财税〔2017〕8号，发改价格〔2017〕270号，财税〔2016〕78号，财税〔2018〕37号，财税〔2019〕45号"]
[{"$nulls":3},"   ①申请费、申请附加费、公布印刷费、优先权要求费"]
[{"$nulls":3},"   ②发明专利申请实质审查费、复审费"]
[{"$nulls":3},"   ③专利登记费、公告印刷费、年费、年费滞纳金"]
[{"$nulls":3},"   ④恢复权利请求费、延长期限请求费"]
[{"$nulls":3},"   ⑤著录事项变更费、专利权评价报告请求费、无效宣告请求费"]
[{"$nulls":3},"   ⑥专利文件副本证明费"]
[{"$nulls":3},"（2）PCT专利申请收费",null,"《中华人民共和国专利法》，《中华人民共和国专利法实施细则》，财税〔2017〕8号，发改价格〔2017〕270号，财税〔2018〕37号"]
[{"$nulls":3},"   ①申请国际阶段收取的国际申请费和手续费，传送费、检索费、优先权文件费、初步审查费、单一性异议费、副本复制费、后提交费、恢复权利请求费、滞纳金"]
[{"$nulls":3},"   ②申请进入中国国家阶段收取的宽限费、译文改正费、单一性恢复费、优先权恢复费"]
[{"$nulls":3},"（3）为其他国家和地区提供检索和审查服务收费",null,"《中华人民共和国专利法》，《中华人民共和国专利法实施细则》，财税〔2017〕8号，发改价格〔2017〕270号"]
[{"$nulls":3},"（4）单独指定费",null,"《中华人民共和国专利法》，《中华人民共和国专利法实施细则》，财税〔2017〕8号，财税〔2022〕13号,发改价格〔2022〕465号，冀发改公价〔2022〕483号"]
[null,null,41,"集成电路布图设计保护收费","缴入中央国库","《集成电路布图设计保护条例》，财税〔2017〕8号，发改价格〔2017〕270号，发改价格〔2017〕1186号","详见文件"]
[{"$nulls":3},"（1）布图设计登记费"]
[{"$nulls":3},"（2）布图设计登记复审请求费"]
[{"$nulls":3},"（3）著录事项变更手续费"]
[{"$nulls":3},"（4）延长期限请求费"]
[{"$nulls":3},"（5）恢复布图设计登记权利请求费"]
[{"$nulls":3},"（6）非自愿许可使用布图设计请求费"]
[{"$nulls":3},"（7）报酬裁决费"]
["二十一","银保监会"]
[null,null,42,"银行业监管费","缴入中央国库","财税〔2015〕21号，财税〔2017〕52号，财税[2021]65号，发改价格[2021]1947号","详见文件"]
[null,null,43,"保险业监管费 ","缴入中央国库","财税〔2015〕22号，财税〔2017〕52号，财税[2021]65号，发改价格[2021]1947号","详见文件"]
["二十二","证监会"]
[null,null,44,"证券、期货业监管费","缴入中央国库","财税〔2015〕20号，财税〔2018〕37号，发改价格规〔2018〕917号，财税[2021]65号，发改价格[2021]1947号","详见文件"]
["二十三","仲裁部门"]
[null,null,45,"仲裁收费","缴入地方国库","《中华人民共和国仲裁法》，国办发〔1995〕44号,财综〔2010〕19号,中办发〔2018〕76号，冀办发〔2019〕4号，冀财综〔2010〕96号,冀财综〔2012〕55号,冀财综〔2010〕60号，冀财非税〔2021〕11号，冀财非税〔2021〕13号","详见文件"]
["二十四","红十字会"]
[null,null,46,"造血干细胞配型费","缴入中央国库","财税〔2016〕115号，发改价格〔2016〕2492号","详见文件"]
["二十五","相关行政机关"]
[null,null,47,"信息公开处理费","缴入中央和地方国库","《中华人民共和国政府信息公开条例》，国办函〔2020〕109号，冀财非税〔2020〕21号","详见文件"]
["二十六","相关部门"]
[null,null,48,"考试考务费","缴入中央和地方国库或财政专户 ","见《全国性考试考务费目录清单》","详见文件"]

{"sheet":"中央涉企收费","index":1,"n_rows":57,"n_cols":7,"rows_kept":57,"merged":[[1,0,1,5],[56,0,56,5]]}
["附件2"]
["河北省执行的全国涉企行政事业性收费目录清单"]
["序号","部门","项目序号","收费项目","资金管理   方式","政策依据","收费标准"]
["一","公安部门"]
[null,null,1,"证照费"]
[{"$nulls":3},"(１)机动车号牌工本费","缴入地方国库",{"$f":"中央行政事业性收费!F36","v":"《中华人民共和国道路交通安全法》，发改价格〔2004〕2831号，计价格〔1994〕783号，价费字〔1992〕240号，行业标准GA36-2014，发改价格规〔2019〕1931号，冀价行费〔2014〕49号"}]
[{"$nulls":3},"①号牌(含临时)",null,null,"汽车号牌：反光100元/副，不反光80元/副。\n挂车号牌：反光50元/面，不反光30元/面。\n三轮汽车、低速货车、拖拉机号牌：反光40元/副，不反光25元/副。\n摩托车号牌：反光17.5元/面。\n机动车临时号牌：5元/张。\n调换号牌、遗失补牌按同类号牌收费。"]
[{"$nulls":3},"②号牌专用固封装置",null,null,"单独补发号牌专用固封装置1元/个"]
[{"$nulls":3},"③号牌架",null,null,"铁质号牌架及同类产品5元/只，铝合金号牌架及同类产品10元/只"]
[{"$nulls":3},"(２)机动车行驶证、登记证、驾驶证工本费","缴入地方国库",{"$f":"中央行政事业性收费!F40","v":"《中华人民共和国道路交通安全法》，发改价格〔2004〕2831号，财综〔2001〕67号，计价格〔2001〕1979号，计价格〔1994〕783号，价费字〔1992〕240号，发改价格〔2017〕1186号"},{"$f":"中央行政事业性收费!G40","v":"1.机动车行驶证：10元/本。调换、遗失补领按同类证件收费\n2.机动车登记证书工本费:10元/本。调换、遗失补领按同类证件收费\n3.驾驶证工本费10元/本。驾驶证IC卡30元/卡。调换、遗失补领以上证件按同类证件收费。"}]
[{"$nulls":3},"(３)临时入境机动车号牌和行驶证、临时机动车驾驶许可工本费","缴入地方国库",{"$f":"中央行政事业性收费!F41","v":"《中华人民共和国道路交通安全法》，财综〔2008〕36号，发改价格〔2008〕1575号，发改价格〔2017〕1186号"},{"$f":"中央行政事业性收费!G41","v":"10元/证"}]
["二","自然资源部门"]
[null,null,2,"土地复垦费","缴入地方国库",{"$f":"中央行政事业性收费!F47","v":"《中华人民共和国土地管理法》，《土地复垦条例》，财税〔2014〕77号,财政部 税务总局 发展改革委 民政部 商务部 卫生健康委公告2019年第76号，《河北省土地管理条例》 "},{"$f":"中央行政事业性收费!G47","v":"造成土地破坏的单位或者个人应当根据破坏土地的面积和破坏程度，按照每平方米五元至二十元的标准，向市、县土地行政主管部门缴纳土地复垦费，由收取复垦费的土地行政主管部门统一组织复垦。"}]
[null,null,3,"土地闲置费","缴入地方国库",{"$f":"中央行政事业性收费!F48","v":"《中华人民共和国土地管理法》,《中华人民共和国城市房地产管理法》，国发〔2008〕3号，财税〔2014〕77号,财政部 税务总局 发展改革委 民政部 商务部 卫生健康委公告2019年第76号，财税[2021]8号，《河北省土地管理条例》，冀税发〔2021〕65号"},{"$f":"中央行政事业性收费!G48","v":"《中华人民共和国城市房地产管理法 》第二十六条　以出让方式取得土地使用权进行房地产开发的，必须按照土地使用权出让合同约定的土地用途、动工开发期限开发土地。超过出让合同约定的动工开发日期满一年未动工开发的，可以征收相当于土地使用权出让金百分之二十以下的土地闲置费；满二年未动工开发的，可以无偿收回土地使用权；但是，因不可抗力或者政府、政府有关部门的行为或者动工开发必需的前期工作造成动工开发迟延的除外。《闲置土地处置办法》第十四条　除本办法第八条规定情形外，闲置土地按照下列方式处理：\n　　（一）未动工开发满1年的，由市、县国土资源主管部门报经本级人民政府批准后，向国有建设用地使用权人下达《征缴土地闲置费决定书》，按照土地出让或者划拨价款的20%征缴土地闲置费。土地闲置费不得列入生产成本。\n　　（二）未动工开发满两年的，由市、县国土资源主管部门按照《中华人民共和国土地管理法》第三十七条和《中华人民共和国城市房地产管理法》第二十六条的规定，报经有批准权的人民政府批准后，向国有建设用地使用权人下达《收回国有建设用地使用权决定书》，无偿收回国有建设用地使用权。闲置土地设有抵押权的，同时抄送相关土地抵押权人。\n"}]
[null,null,4,"不动产登记费","缴入中央和地方国库",{"$f":"中央行政事业性收费!F49","v":"《中华人民共和国民法典》，财税〔2014〕77号，财税〔2016〕79号，发改价格规〔2016〕2559号，财税〔2019〕45号，财税〔2019〕53号,财政部 税务总局 发展改革委 民政部 商务部 卫生健康委公告2019年第76号"},{"$f":"中央行政事业性收费!G49","v":"1.规划用途为住宅的房屋（以下简称住宅）及其建设用地使用权申请办理不动产登记事项，提供具体服务内容，据实收取不动产登记费，收费标准为每件80元。                                                          2.非住宅类不动产登记收费标准。办理非住宅类不动产权利的首次登记、转移登记，收取不动产登记费，收费标准为每件550元。                3.不动产登记机构按本通知第一条规定收取不动产登记费，核发一本不动产权属证书的不收取证书工本费。向一个以上不动产权利人核发权属证书的，每增加一本证书加收证书工本费10元。"}]
[null,null,5,"耕地开垦费","缴入地方国库",{"$f":"中央行政事业性收费!F50","v":"《中华人民共和国土地管理法》，《中华人民共和国土地管理法实施条例》，财税〔2014〕77号,财政部 税务总局 发展改革委 民政部 商务部 卫生健康委公告2019年第76号，《河北省土地管理条例》 ，冀发改公价规[2024]5号"},{"$f":"中央行政事业性收费!G50","v":"详见冀发改公价规[2024]5号"}]
["三","住房城乡建设部门"]
[null,null,6,"污水处理费","缴入地方国库",{"$f":"中央行政事业性收费!F54","v":"《中华人民共和国水污染防治法》,《城镇排水与污水处理条例》，财税〔2014〕151号，发改价格〔2015〕119号，冀财税〔2016〕95号，冀价经费〔2015〕110号 "},{"$f":"中央行政事业性收费!G54","v":"污水处理费的征收标准，按照覆盖污水处理设施正常运营和污泥处理处置成本并合理盈利的原则制定，由县级以上地方人民政府价格、财政和城镇排水与污水处理主管部门提出意见，报同级人民政府批准后执行。"}]
[null,null,7,"城市道路占用、挖掘修复费","缴入地方国库",{"$f":"中央行政事业性收费!F56","v":"《城市道路管理条例》，建城〔1993〕410号，财税〔2015〕68号,冀建城〔1994〕6号，冀建城〔2015〕43号，国办发〔2020〕27号，财办税﹝2020﹞13号，冀财非税〔2020〕13号 "},{"$f":"中央行政事业性收费!G56","v":"占道费由省级市政部门根据本办法提出意见报同级财政物价部门核定。挖掘修复收费由各省、自治区、直辖市市政部门制定，并报同级财政物价部门备案。"}]
["四","交通运输部门"]
[null,null,8,"车辆通行费(限于政府还贷)","缴入地方国库",{"$f":"中央行政事业性收费!F58","v":"《中华人民共和国公路法》，《收费公路管理条例》，交公路发〔1994〕686号，交公路发[2010]715号,冀交公〔2012〕529号，冀交财〔2012〕29号，交办公路函〔2019〕1675号，交公路发〔2019〕98号，交公路函[2021]228号，冀交财〔2019〕448号，冀交财〔2022〕529号，冀发改公价〔2022〕1494号，冀发改公价〔2022〕1587号，冀发改公价〔2022〕1588号，冀发改公价〔2022〕1610号，冀发改公价〔2022〕1634号，冀发改公价〔2023〕205号，冀发改公价〔2023〕396号，冀交财〔2024〕2号，冀发改公价[2024]285号、《河北省防汛避险人员转移条例》，冀交法【2024】119号"},{"$f":"中央行政事业性收费!G58","v":"政府还贷公路的收费标准，由省、自治区、直辖市人民政府交通主管部门会同同级价格主管部门、财政部门审核后，报本级人民政府审查批准。"}]
["五","工业和信息化部门"]
[null,null,9,"无线电频率占用费","缴入中央和地方国库",{"$f":"中央行政事业性收费!F60","v":"《中华人民共和国无线电管理条例》，计价格〔2000〕1015号，发改价格〔2013〕2396号，发改价格〔2011〕749号，发改价格〔2005〕2812号，发改价格〔2003〕2300号，计价费〔1998〕218号，发改价格〔2017〕1186号，发改价格〔2018〕601号，发改价格〔2019〕914号 "},{"$f":"中央行政事业性收费!G60","v":"详见文件"}]
["六","水利部门"]
[null,null,10,"水土保持补偿费","缴入中央和地方国库",{"$f":"中央行政事业性收费!F63","v":"《中华人民共和国水土保持法》，财综〔2014〕8号,发改价格〔2017〕1186号，冀价行费〔2017〕173号，财税[2020]58号，冀财非税〔2020〕5号 ，财税[2023]9号"},{"$f":"中央行政事业性收费!G63","v":"1、对一般性生产建设项目，按照征占用土地面积每平方米1.4元一次性计征。对水利水电工程建设项目，水库淹没区不在水土保持补偿费计征范围之内。\n2、开采矿产资源的，建设期间，按照征占用土地面积一次性计征，具体收费标准按照第一款执行。开采期间，石油、天然气以外的矿产资源按照开采量（采掘、采剥总量）每立方米计征，其中露天矿开采按每立方米0.7元计征、地下矿开采按每立方米0.3元计征。石油、天然气根据油、气生产井（不包括水井、勘探井）占地面积按年征收，每口油、气生产井占地面积按 2000平方米计算；对丛式井每增加一口井，增加计征面积按400平方米计算，每平方米每年收费1.4元。3、取土、挖砂（河道采砂除外）、采石以及烧制砖、瓦、瓷、石灰的，根据取土、挖砂、采石量，按照每立方米0.3元计征（不足1立方米的按1立方米计）。对缴纳义务人已按前两种方式计征水土保持补偿费的，不再重复计征。4、排放废弃土、石、渣的，根据土、石、渣量，按照每立方米0.3计征（不足1立方米的按1立方米计）。对缴纳义务人已按前三种方式计征水土保持补偿费的，不再重复计征。5、对小微企业征收的水土保持补偿费属于地方收入部分收费进行减免。"}]
["七","农业农村部门"]
[null,null,11,"农药实验费","缴入中央和地方国库",{"$f":"中央行政事业性收费!F65","v":"《农药管理条例》，价费字〔1992〕452号，发改价格〔2015〕2136号，发改价格〔2017〕1186号 "}]
[{"$nulls":3},"（1）田间试验费",null,null,"田间试验每小区60-200元"]
[{"$nulls":3},"（2）残留试验费",null,null,"残留试验（一种剂型，一种作物，一处试验点，两年试验期）15000-17500元"]
[{"$nulls":3},"（3）药效试验费",null,null,"药效示范试验每个试验点750-900元"]
[null,null,12,"渔业资源增殖保护费","缴入中央和地方国库",{"$f":"中央行政事业性收费!F69","v":"《中华人民共和国渔业法》，财税〔2014〕101号，财综〔2012〕97号,计价格〔1994〕400号,价费字〔1992〕452号，冀牧渔（管）字[1989]第127号，冀牧字（管）字[1991]第262号 ，冀牧渔（管)字[1992]第110号"},{"$f":"中央行政事业性收费!G69","v":"省级人民政府渔业行政主管部门制定的，由省级人民政府物价、财政部门核定；海区渔政监督管理机构制定的，报国务院渔业行政主管部门审查后，由国务院物价、财政部门核定。"}]
["八","林业和草原部门"]
[null,null,13,"草原植被恢复费","缴入地方国库",{"$f":"中央行政事业性收费!F71","v":"《中华人民共和国草原法》，财综〔2010〕29号，发改价格〔2010〕1235号，冀财综[2010]69号,冀发改公价〔2020〕892号 ，财税[2022]50号，省税务局通告[2022]3号"},{"$f":"中央行政事业性收费!G71","v":"1900元/亩"}]
["九","人防部门"]
[null,null,14,"防空地下室易地建设费","缴入中央和地方国库",{"$f":"中央行政事业性收费!F80","v":"中发〔2001〕9号, 计价格〔2000〕474号,财综〔2007〕53号，财税〔2014〕77号，财税〔2019〕53号,财政部 税务总局 发展改革委 民政部 商务部 卫生健康委公告2019年第76号，财政部 税务总局 住房城乡建设部公告2023年第70号，财综[2023]39号，冀政办〔2009〕5号，国发〔2007〕24号，冀财非税〔2004〕2号，《河北省人民防空工程维护与使用管理条例》，冀财税〔2015〕34号，冀财非税函[2022]4号，冀发改公价[2022]1449号，省政府令[2023]4号"},{"$f":"中央行政事业性收费!G80","v":" 1.防护等级6B级防空地下室易地建设费，收费标准为:设区市每平方米300元，县(市)每平方米200元。\n2.防护等级6B级以外的防空地下室易地建设费，收费标准为:设区市每平方米1500元，县(市)每平方米1000元。"}]
["十","法院"]
[null,null,15,"诉讼费","缴入中央和地方国库",{"$f":"中央行政事业性收费!F82","v":"《中华人民共和国民事诉讼法》，《中华人民共和国行政诉讼法》，《诉讼费用交纳办法》（国务院令第481号），财行〔2019〕283号，冀财预〔2005〕105号，冀财政法〔2019〕17号，冀财政法〔2021〕53号，冀发改公价〔2021〕1637号，冀财非税函[2022]4号"},{"$f":"中央行政事业性收费!G82","v":"详见文件"}]
["十一","市场监管部门"]
[null,null,16,"特种设备检验检测费","缴入地方国库",{"$f":"中央行政事业性收费!F84","v":"《中华人民共和国特种设备安全法》，《特种设备安全监察条例》，发改价格〔2015〕1299号，财综〔2011〕16号，财综〔2001〕10号，冀发改公价〔2021〕769号，冀发改公价〔2021〕1535号"},{"$f":"中央行政事业性收费!G84","v":"详见文件"}]
["十二","卫生健康部门"]
[null,null,17,"非免疫规划疫苗储存运输费","缴入地方国库",{"$f":"中央行政事业性收费!F78","v":"《中华人民共和国疫苗管理法》，财税〔2020〕17号，冀财税〔2020〕15号，冀发改公价〔2023〕655号"},"10元/支"]
["十三","药品监管部门"]
[null,null,18,"药品注册费 ","缴入中央和地方国库",{"$f":"中央行政事业性收费!F91","v":"《中华人民共和国药品管理法实施条例》，财税〔2015〕2号，发改价格〔2015〕1006号，食药监公告2015第53号,食药监公告2020年75号，财政部 国家发改委公告2022年第5号，财政部 国家发展改革委公告2023年第45号 ，冀价行费〔2016〕210号 "},{"$f":"中央行政事业性收费!G91","v":"药品、医疗器械产品注册费=人日费用标准×注册所需人数×注册所需天数。人日费用标准，按不高于2400元执行。"}]
[{"$nulls":3},"（1）新药注册费"]
[{"$nulls":3},"（2）仿制药注册费"]
[{"$nulls":3},"（3）补充申请注册费"]
[{"$nulls":3},"（4）再注册费"]
[{"$nulls":3},"（5）加急费"]
[null,null,19,"医疗器械产品注册费","缴入中央和地方国库",{"$f":"中央行政事业性收费!F97","v":"《中华人民共和国药品管理法实施条例》，财税〔2015〕2号，发改价格〔2015〕1006号，食药监公告2015第53号,食药监公告2020年75号，财政部 国家发改委公告2022年第5号，财政部 国家发展改革委公告2023年第45号 ，冀价行费〔2016〕210号 "},{"$f":"中央行政事业性收费!G97","v":"药品、医疗器械产品注册费=人日费用标准×注册所需人数×注册所需天数。人日费用标准，按不高于2400元执行。"}]
[{"$nulls":3},"（1）首次注册费"]
[{"$nulls":3},"（2）变更注册费"]
[{"$nulls":3},"（3）延续注册费"]
[{"$nulls":3},"（4）临床试验申请费"]
[{"$nulls":3},"（5）加急费"]
["十四","仲裁部门"]
[null,null,20,"仲裁收费","缴入地方国库",{"$f":"中央行政事业性收费!F145","v":"《中华人民共和国仲裁法》，国办发〔1995〕44号,财综〔2010〕19号,中办发〔2018〕76号，冀办发〔2019〕4号，冀财综〔2010〕96号,冀财综〔2012〕55号,冀财综〔2010〕60号，冀财非税〔2021〕11号，冀财非税〔2021〕13号"},{"$f":"中央行政事业性收费!G145","v":"详见文件"}]
["注：上述涉企收费项目为缴入地方国库以及中央和地方分成项目，全部缴入中央国库的涉企收费项目参见财政部《全国性及中央部门和单位涉企行政事业性收费目录清单》。"]

{"sheet":"省立行政事业性收费","index":2,"n_rows":47,"n_cols":7,"rows_kept":47,"merged":[[1,0,1,6]]}
["附件3"]
["河北省执行的省立行政事业性收费目录清单"]
["序号","部门","项目序号","项目名称","资金管理方式","政策依据","收费标准"]
["一","教育"]
[null,null,1,"河北开放大学收费","缴入地方财政专户","冀财综〔2014〕97号，冀发改公价〔2021〕1638号，冀教财〔2021〕17号","详见文件"]
[{"$nulls":3},"（1）学费"]
[{"$nulls":3},"①普通高职、普通师范类专科生"]
[{"$nulls":3},"②远程开放教育"]
[{"$nulls":3},"③电大业余班"]
[{"$nulls":3},"（2）住宿费"]
[{"$nulls":3},"（3）考试费"]
[{"$nulls":3},"（4）开放教育报名注册费"]
[{"$nulls":3},"（5）教学业务管理费"]
[null,null,2,"成人高等教育收费","缴入地方财政专户","冀财税〔2018〕77号，冀价行费〔2018〕93号，冀发改公价〔2021〕1638号，冀教财〔2021〕17号","详见文件"]
[{"$nulls":3},"（1）学费"]
[{"$nulls":3},"（2）住宿费"]
[{"$nulls":3},"（3）报名考试费"]
[null,null,3,"中外合作办学学费（不含民办学校）","缴入地方财政专户","教财〔2003〕4号，冀教财〔2021〕17号","详见文件"]
[null,null,4,"中小学教师继续教育培训费","缴入地方财政专户","冀价行费〔2008〕39号，冀政办函〔2008〕57号，冀发改公价〔2021〕1638号","详见文件"]
[null,null,5,"教育干部培训收费","缴入地方国库","冀财综〔1999〕42号，冀价行费〔2008〕39号,冀政办函〔2008〕57号，冀财预〔2010〕131号","详见文件"]
[null,null,6,"义务教育阶段城市市区公办学校住宿费","缴入地方财政专户","冀价行费〔2008〕7号，冀发改价调〔2022〕1563号","详见文件"]
["二","公安"]
[null,null,7,"养犬管理服务费","缴入地方国库","冀价行费〔2011〕5号，《河北省养犬管理条例》","详见文件"]
["三","人力资源和社会保障"]
[null,null,8,"劳动能力鉴定费","缴入地方国库","冀发改公价〔2020〕1712号，冀财综〔2014〕12号","详见文件"]
[{"$nulls":3},"（1）职工因工伤残申请劳动能力鉴定"]
[{"$nulls":3},"（2）职工因病或非因工致残申请劳动能力鉴定和供养亲属完全丧失劳动能力申请鉴定"]
[{"$nulls":3},"（3）争议案件申请再次鉴定"]
[null,null,9,"技工学校收费","缴入地方财政专户","冀财综〔2014〕97号，冀发改价调〔2022〕1563号，冀教财〔2021〕17号","详见文件"]
[{"$nulls":3},"（1）招生费"]
[{"$nulls":3},"（2）学费"]
[{"$nulls":3},"（3）住宿费"]
[null,null,10,"专业技术职务任职资格评审费","缴入地方国库","冀价行费字〔2000〕第40号，冀财非税[2022]10号","详见文件"]
[{"$nulls":3},"（1）职称评审费"]
[{"$nulls":3},"（2）专家评审费"]
["四","农业农村"]
[null,null,11,"农业广播电视学校收费","缴入地方财政专户","冀农广字〔1991〕5号，冀财综〔2014〕97号，冀发改价调〔2022〕1563号","详见文件"]
[{"$nulls":3},"（1）学费"]
[{"$nulls":3},"①成人中专"]
[{"$nulls":3},"②函授专科"]
[{"$nulls":3},"（2）住宿费"]
[{"$nulls":3},"（3）教学业务管理费"]
["五","卫生健康"]
[null,null,12,"新型冠状病毒检测费","缴入地方国库","国卫明电〔2020〕376号，冀财非税〔2020〕14号，冀发改公价〔2022〕727号","详见文件"]
["六","相关部门"]
[null,null,13,"老年大学培训收费","缴入地方国库","冀财税〔2017〕91号，冀发改公价〔2022〕1638号","详见文件"]
[null,null,14,"考试考务费","缴入地方国库或财政专户","见《河北省考试考务费目录清单》","详见文件"]

{"sheet":"考试考务","index":3,"n_rows":120,"n_cols":5,"rows_kept":120,"merged":[[1,0,1,3]]}
["附件4"]
["河北省执行的考试考务费目录清单"]
["类别","序号","收费项目","收费标准及资金管理文件依据"]
["一、专业技术人员职业资格、职称等考试收费"]
["（一）人社部门",1,"专业技术人员计算机应用能力考试","财税〔2015〕69号,发改价格〔2015〕1217号，发改价格〔2015〕2673号，冀价行费〔2013〕54号"]
[null,2,"注册城乡规划师职业资格考试","财税〔2015〕69号，财税〔2018〕87号，发改价格〔2015〕1217号，发改价格〔2015〕2673号，冀价行费〔2013〕54号，"]
[null,3,"专业技术人员职称外语等级考试","财税〔2015〕69号，发改价格〔2015〕1217号，发改价格〔2015〕2673号，冀价行费〔2013〕54号"]
[null,4,"初级、中级、高级经济专业技术资格考试","财税〔2015〕69号，发改价格〔2015〕1217号，发改价格〔2015〕2673号，财税〔2020〕37号，冀价行费〔2013〕54号"]
[null,5,"执业药师职业资格考试","财税〔2015〕69号，发改价格〔2015〕1217号，发改价格〔2015〕2673号，财税〔2020〕37号，冀价行费〔2013〕54号，冀发改公价[2024]764号"," "]
[null,6,"监理工程师职业资格考试","财税〔2015〕69号，发改价格〔2015〕1217号，发改价格〔2015〕2673号，财税〔2020〕37号，冀价行费〔2013〕54号"]
[null,7,"一级、二级造价工程师职业资格考试","财税〔2015〕69号，发改价格〔2015〕1217号，发改价格〔2015〕2673号，财税〔2019〕58号，冀价行费〔2013〕54号，冀发改公价〔2023〕1843号"]
[null,8,"出版专业技术人员职业资格考试","财税〔2015〕69号，发改价格〔2015〕1217号，发改价格〔2015〕2673号，冀价行费〔2013〕54号"]
[null,9,"初级、中级注册安全工程师职业资格考试","财税〔2015〕69号，发改价格〔2015〕1217号，发改价格〔2015〕2673号，财税〔2019〕58号，冀发改公价〔2021〕1462号"]
[null,10,"注册设备监理师执业资格考试","财税〔2015〕69号，发改价格〔2015〕1217号，发改价格〔2015〕2673号，冀价行费〔2013〕54号"]
[null,11,"助理社会工作师、社会工作师、高级社会工作师职业水平考试","财税〔2015〕69号，发改价格〔2015〕1217号，发改价格〔2015〕2673号，财税〔2019〕58号，冀价行费〔2013〕54号"]
[null,12,"注册测绘师资格考试","财税〔2015〕69号，发改价格〔2015〕1217号，发改价格〔2015〕2673号，冀价行费〔2013〕54号"]
[null,13,"一、二级注册计量师职业资格考试","财税〔2015〕69号，发改价格〔2015〕1217号，发改价格〔2015〕2673号，财税〔2020〕37号，冀价行费〔2013〕54号"]
[null,14,"一级注册消防工程师资格考试","财税〔2015〕69号，发改价格〔2015〕1217号，发改价格〔2015〕2673号,冀价行费〔2013〕54号"]
[null,15,"事业单位招聘工作人员考试","冀财非税〔2023〕7号，冀发改公价〔2023〕1705号"]
[null,16,"公务员考试","冀财非税〔2023〕7号，冀发改公价〔2023〕1705号"]
[null,null,"（1）报名费"]
[null,null,"（2）考务费"]
["（二）住房城乡建设部门",17,"注册化工工程师执业资格基础考试","财税〔2015〕68号,发改价格〔2015〕1217号，冀价行费〔2013〕54号"]
[null,18,"注册化工工程师执业资格专业考试","财税〔2018〕90号，发改价格〔2015〕1217号"]
[null,19,"注册公用设备工程师执业资格基础考试","财税〔2015〕68号,发改价格〔2015〕1217号，冀价行费〔2013〕54号"]
[null,20,"注册公用设备工程师执业资格专业考试","财税〔2018〕90号，发改价格〔2015〕1217号"]
[null,21,"注册土木工程师（港口与航道工程）执业资格考试","财税〔2015〕68号,发改价格〔2015〕1217号，冀价行费〔2013〕54号"]
[null,22,"注册电气工程师执业资格基础考试","财税〔2015〕68号,发改价格〔2015〕1217号，冀价行费〔2013〕54号"]
[null,23,"注册电气工程师执业资格专业考试","财税〔2018〕90号，发改价格〔2015〕1217号"]
[null,24,"注册土木工程师（岩土）执业资格（基础、专业）考试","财税〔2015〕68号,发改价格〔2015〕1217号，冀价行费〔2013〕54号"]
[null,25,"一级、二级建造师执业资格考试","财税〔2015〕68号，发改价格〔2015〕1217号，财税〔2020〕37号"]
[null,26,"注册环保工程师执业资格基础考试","财税〔2015〕68号,发改价格〔2015〕1217号，冀价行费〔2013〕54号"]
[null,27,"注册土木工程师（水利水电工程）执业资格基础考试","财税〔2015〕68号,发改价格〔2015〕1217号，冀价行费〔2013〕54号"]
[null,28,"房地产估价师执业资格考试","财税〔2015〕68号，发改价格〔2015〕1217号，冀发改函[2022]296号"]
[null,29,"一级注册结构工程师执业资格（基础、专业）考试","财税〔2015〕68号，发改价格〔2015〕1217号"]
[null,30,"二级注册结构工程师执业资格（基础、专业）考试","财税〔2015〕68号，发改价格〔2015〕1217号"]
[null,31,"注册机械工程师执业资格基础考试","财税〔2015〕68号，发改价格〔2015〕1217号"]
[null,32,"注册冶金工程师执业资格基础考试","财税〔2015〕68号，发改价格〔2015〕1217号"]
[null,33,"注册采矿/矿物工程师执业资格基础考试","财税〔2015〕68号，发改价格〔2015〕1217号"]
[null,34,"注册石油天然气工程师执业资格基础考试","财税〔2015〕68号，发改价格〔2015〕1217号"]
[null,35,"一级、二级注册建筑师执业资格考试","财税〔2015〕68号，发改价格〔2015〕1217号"]
[null,36,"注册土木工程师（道路工程）执业资格基础考试 ","财税〔2015〕68号,发改价格〔2015〕1217号"]
["（三）卫生健康部门",37,"卫生专业技术资格考试","财税〔2016〕14号，发改价格〔2015〕1217号，发改价格〔2016〕488号，冀价行费〔2013〕54号"]
[null,38,"医学博士外语考试","财税〔2016〕14号，发改价格〔2016〕488号"]
[null,39,"护士执业资格考试","财税〔2016〕14号,发改价格〔2015〕1217号，发改价格〔2016〕488号，冀财综〔2012〕70号，冀发改公价〔2023〕555号"]
[null,40,"医师资格考试（会同中医局）","财税〔2016〕14号，发改价格〔2015〕1217号，财税〔2016〕105号，财综〔2011〕94号,发改价格〔2016〕488号，冀财综〔2011〕103号，冀发改公价〔2023〕555号"]
["（四）生态环境部门",41,"环境影响评价工程师职业资格考试","财综〔2007〕41号，发改价格〔2015〕1217号，冀价行费〔2013〕54号"]
[null,42,"注册核安全工程师执业资格考试","财综〔2007〕41号,发改价格〔2015〕1217号"]
[null,43,"注册环保工程师执业资格专业考试","财税〔2018〕100号，发改价格〔2015〕1217号"]
["（五）财政部门",44,"会计专业技术资格","价费字〔1992〕333号，发改价格〔2015〕1217号，冀发改函〔2022〕326号"]
[null,45,"注册会计师考试","发改价格〔2015〕1217号，冀发改公价〔2024〕423号"]
["（六）交通运输部门",46,"注册验船师考试","财综〔2010〕13号,发改价格〔2015〕1217号"]
[null,47,"船员(含海船及内河船员)考试","价费字〔1992〕191号，发改价格〔2015〕1217号"]
[null,48,"机动车检测维修专业技术人员职业水平考试","财综〔2011〕10号,发改价格〔2015〕1217号，冀发改公价〔2021〕1039号"]
[null,49,"注册土木工程师（港口与航道工程）执业资格专业考试","财综〔2007〕23号,发改价格〔2015〕1217号，冀价行费〔2013〕54号"]
[null,50,"公路水运工程试验检测专业技术人员（含助理试验检测师和试验检测师）考试","财税〔2018〕66号，发改价格〔2015〕1217号，冀财税〔2018〕76号，冀发改公价[2023]1473号"]
[null,51,"勘察设计注册土木工程师（道路工程）专业考试","财税〔2018〕66号，发改价格〔2015〕1217号，冀财税〔2018〕76号"]
["（七）工业和信息化部门",52,"计算机软件专业技术资格和水平考试","发改价格〔2015〕1217号，冀价行费〔2013〕54号"]
[null,53,"全国通信专业技术人员职业水平考试","财综〔2011〕90号,发改价格〔2015〕1217号，冀财综〔2011〕102号,冀价行费〔2013〕52号"]
["（八）水利部门",54,"注册土木工程师（水利电工程）执业资格专业考试","发改价格〔2015〕1217号，财综〔2006〕37号,冀价行费〔2013〕54号"]
["（九）农业农村部门",55,"海洋渔业船舶船员考试","价费字〔1992〕452号"]
[null,56,"执业兽医资格考试","财综〔2009〕71号,发改价格〔2015〕1217号，冀价行费〔2013〕15号"]
["（十）审计部门",57,"审计专业技术资格考试","价费字〔1992〕444号，发改价格〔2015〕1217号，冀价行费〔2013〕54号"]
["（十一）教育部门",58,"教师资格考试费","财综〔2012〕41号，发改价格〔2015〕1217号，冀发改公价〔2021〕1643号，冀财非税函〔2022〕1号"]
["（十二）公安部门、农业农村部门",59,"驾驶许可考试费","发改价格〔2004〕2831号,财税〔2016〕42号，冀价行费〔2008〕39号,冀发改公价[2024]290号"]
["（十三）司法部门",60,"法律职业资格考试","财税〔2018〕65号，发改价格〔2015〕1217号，，冀财税[2018]43号，冀财税〔2019〕32号，冀财非税[2020]12号，冀发改公价〔2023〕573号"]
["（十四）市场监管部门",61,"计量专业项目考试（考核）","财综〔2010〕77号,发改价格〔2015〕1217号"]
["（十五）广电部门",62,"全国广播电视新闻编辑记者、播音员、主持人资格考试","财综〔2008〕37号,发改价格〔2015〕1217号，财综〔2005〕33号,冀价行费〔2008〕32号，冀财综〔2005〕44号"]
[null,63,"新闻记者职业资格考试","财税【2023】23号"]
["（十六）民航部门",64,"民航从业人员考试","财综〔2002〕54号,发改价格〔2015〕1217号"]
["（十七）统计部门",65,"统计专业技术资格考试","计价格〔2002〕964号,发改价格〔2015〕1217号,冀价行费〔2011〕31号"]
["（十八）文化和旅游部门",66,"导游人员（含中、高、特级导游人员）资格考试","财综〔2006〕31号,发改价格〔2015〕1217号，冀价行费〔2010〕47号，冀价行费〔2016〕200号"]
["（十九）证监会",67,"证券、期货、基金从业人员资格考试","财税〔2015〕20号,发改价格〔2015〕1217号，发改价格规〔2018〕917号"]
["（二十）外文部门",68,"翻译专业资格(水平)考试","发改价格〔2015〕1217号，冀价行费〔2013〕54号"]
["（二十一）知识产权部门",69,"专利代理师资格考试","财税〔2017〕8号，价费字〔1992〕332号，发改价格〔2015〕1217号，财税〔2020〕37号"]
["（二十二）应急管理部门",70,"特种作业人员安全技术考试","发改价格〔2015〕1217号，财税函〔2020〕236号，冀财综〔2014〕53号,冀财税〔2016〕113号,冀发改公价〔2021〕1040号"]
["二、职业技能鉴定考试考务费"]
["（一）人社部门",1,"职业技能鉴定费","财税〔2015〕69号,发改价格〔2015〕1217号，发改价格〔2015〕2673号，冀财综〔2014〕21号，冀价行费〔2018〕86号，冀发改公价〔2021〕1031号，冀发改公价[2024]933号"]
["（二）交通运输部门",2,"交通行业特有职业技能资格鉴定考试（考核）","财综〔2006〕36号,发改价格〔2015〕1217号"]
[null,3,"经营性道路客货运输驾驶员从业资格考试","财综〔2010〕39号,发改价格〔2015〕1217号，冀财综〔2010〕120号,冀发改公价〔2022〕1459号"]
["（三）工业和信息化部门",4,"电子行业特有工种职业技能鉴定考试","发改价格〔2015〕1217号"]
[null,5,"通信行业特有职业（工种）技能鉴定考试","财综〔2012〕51号,发改价格〔2015〕1217号，冀财综〔2012〕64号"]
["（四）农业农村部门",6,"农业行业职业技能鉴定考试","财综字〔1999〕127号，发改价格〔2015〕1217号"]
["（五）公安部门",7,"消防行业特有工种职业技能鉴定考试","财综〔2011〕59号,发改价格〔2015〕1217号，冀财综〔2013〕92号，冀发改公价[2023]1103号"]
[null,8,"保安员资格考试费 ","财综〔2011〕60号,发改价格〔2015〕1217号，冀财综〔2011〕101号，冀发改公价〔2020〕1996号，冀财非税〔2021〕2号"]
["（六）卫生健康部门",9,"卫生行业国家职业技能鉴定考试考务费","财税〔2016〕14号，发改价格〔2015〕1217号，发改价格〔2016〕488号"]
[null,10,"生殖健康咨询师考试","财税〔2016〕14号,发改价格〔2015〕1217号，发改价格〔2016〕488号"]
["（七）民航部门",11,"民航行业特有工种职业技能鉴定考试","财综〔2011〕108号,发改价格〔2015〕1217号，冀财综〔2012〕19号"]
["（八）铁路部门",12,"铁路机车车辆驾驶资格考试","财税〔2015〕75号,发改价格〔2015〕1217号，发改价格〔2015〕2672号"]
["（九）铁路总公司",13,"铁道行业职业技能鉴定考试","计价格〔2002〕435号，财预〔2003〕470号"]
["三、教育考试考务费"]
["教育部门",1,"高等教育自学考试收费","价费字〔1992〕367号，发改价格〔2003〕2161号，冀财综〔2010〕159号，冀财综〔2014〕90号，冀发改公价〔2021〕1638号"]
[null,null,"（1）报名考务费"]
[null,null,"（2）学士学位审定费"]
[null,null,"（3）实践环节考核费"]
[null,null,"（4）部门委托自学考试收费"]
[null,2,"全国公共英语等级考试","财综〔1999〕110号，发改价格〔2003〕2161号，冀发改公价〔2021〕1638号"]
[null,3,"全国计算机应用技术证书考试","财综字〔1999〕110号,发改价格〔2008〕3699号,发改价格〔2003〕2161,冀发改公价〔2021〕1638号"]
[null,4,"高考（含成人高考）考试","发改价格〔2005〕1244号,发改价格〔2003〕2161号,〔1992〕价费字367号，冀财非税〔2021〕4号，冀发改公价〔2024〕75号，冀发改公价〔2021〕1638号,冀财非税函[2023]3号，冀财非税函[2024]1号"]
[null,5,"研究生招生考试","教财〔2006〕2号，发改价格〔2003〕2161号,财综字〔1995〕16号,教财〔1992〕42号，冀发改公价〔2021〕1638号"]
[null,6,"大学英语四、六级考试","发改价格〔2008〕3699号,价费字〔1992〕367号，冀发改公价〔2021〕1638号"]
[null,7,"专科起点本科入学考试（专接本）","发改价格〔2003〕2161号，冀发改公价〔2021〕1638号"]
[null,8,"计算机等级考试","发改价格〔2003〕2161号，冀发改公价〔2021〕1638号"]
[null,9,"普通话水平测试","财综〔2003〕53号,发改价格〔2003〕2160号，冀财税[2017]30号，冀发改公价〔2021〕1638号"]
[null,10,"保送生测试","教财〔2006〕2号"]
[null,11,"自费来华学生报名考试","教外来〔1998〕7号，教财〔2006〕2号，冀发改服务价格〔2019〕1597号，冀教财〔2021〕17号"]
[null,12,"体育特殊专业招生考试（体育单招)","计价格〔2000〕1553号，教财〔2006〕2号，冀发改公价〔2021〕1638号"]
[null,13,"初中学业水平考试（高中阶段招生）报名考务费","冀财综〔2014〕90号，冀发改公价〔2021〕1638号，冀财非税[2024]1号"]
[null,14,"普通高中学业水平考试报名考务费","冀财综〔2010〕95号，冀财综〔2014〕90号,冀发改公价〔2023〕188号，冀财非税函[2023]2号"]
[null,15,"普通中专及成人大中专院校招生费","冀财综〔2014〕90号，冀发改公价〔2021〕1638号"]
[null,16,"在职人员攻读硕士、博士学位入学联考报名考试费","冀发改公价〔2021〕1638号"]
[null,17,"同等学历人员申请硕士、博士学位水平全国统一考试报名考试费","教财〔2006〕2号，计价格〔2000〕545号，冀发改公价〔2021〕1638号"]
[null,18,"艺术类、体育类学生入学专业测试","教财〔2006〕2号，冀发改公价〔2024〕75号"]
[null,19,"对口招生专业测试考试费","冀发改公价〔2024〕75号"]
[null,20,"自主招生院校文化课程考试费","冀发改公价〔2024〕75号"]
[null,21,"高水平运动员资格认定报名考务费","财教〔2006〕2号，冀财综〔2014〕71号"]
[]
["四、公安",1,"恢复驾驶资格考试收费","冀价行费字〔2001〕31号，冀价行费〔2007〕16号，冀价行费〔2010〕11号，冀财综〔2014〕59号"]
[null,null,"（1）违章驾驶员恢复驾驶资格考试收费"]
[null,null,"（2）逾期未体检驾驶员恢复驾驶资格考试收费"]